Cogmind - Beta 9.4 *** ADVENTURER MODE // 2020.08.03 @ 19:42:28 Player: Scyralis Result: Self-destructed Performance ------------- Evolutions (1) 500 Regions Visited (3) 600 Robots Destroyed (15) 75 Value Destroyed (147) 147 Prototype IDs (0) 0 Alien Tech Used (0) 0 Bonus (0) 0 TOTAL SCORE: 1322 Bonus ------- None Cogmind --------- Core Integrity 391/400 Matter 295/300 Energy 290/290 System Corruption 0% Temperature Cool (0) Movement Walking (120) Location -9/Materials Parts ------- > --- POWER (1) -------- Improved Deuterium Engine > --- PROPULSION (2) --- Aluminum Leg Carbon-fiber Leg > --- UTILITY (4) ------ Advanced Heat Sink Medium Armor Plating > --- WEAPON (2) ------- EM Pulse Gun > --- INVENTORY (4) ---- (None) Peak State ------------ > --- POWER ------------ Improved Deuterium Engine > --- PROPULSION ------- Aluminum Leg Carbon-fiber Leg > --- UTILITY ---------- Advanced Heat Sink Medium Armor Plating > --- WEAPON ----------- EM Pulse Gun Medium Laser > --- INVENTORY -------- (None) [Rating: 17] Favorites ----------- Power Ion Engine Engine Ion Engine Propulsion Aluminum Leg Leg Aluminum Leg Utility Advanced Heat Sink Device Advanced Heat Sink Protection Medium Armor Plating Weapon EM Pulse Gun Energy Gun EM Pulse Gun Build | -11 -10 -10 -9 ------- Run | Scr Mat Min Mat Slots Evolved 2 | . . . 2 Power . | . . . . Propulsion . | . . . . Utility 2 | . . . 2 Weapon . | . . . . Parts Attached 9 | 5 . 3 1 Power 2 | 1 . 1 . Engine 2 | 1 . 1 . Core . | . . . . Reactor . | . . . . Propulsion 3 | 2 . 1 . Treads . | . . . . Leg 3 | 2 . 1 . Wheel . | . . . . Hover . | . . . . Flight . | . . . . Utility 2 | . . 1 1 Device 1 | . . 1 . Storage . | . . . . Processor . | . . . . Hackware . | . . . . Protection 1 | . . . 1 Artifact . | . . . . Weapon 2 | 2 . . . Energy Gun 2 | 2 . . . Energy Cannon . | . . . . Ballistic Gun . | . . . . Ballistic Cannon . | . . . . Launcher . | . . . . Special Weapon . | . . . . Impact Weapon . | . . . . Slashing Weapon . | . . . . Piercing Weapon . | . . . . Special Melee Weapon . | . . . . Unidentified Prototypes . | . . . . Parts Lost 1 | . . . 1 Power . | . . . . Propulsion . | . . . . Utility . | . . . . Weapon 1 | . . . 1 Highest Loss Streak 1 | . . . 1 Average Slot Usage (%) 73 | . 71 78 72 Engine 13 | . 14 14 11 Leg 26 | . 28 28 22 Device 4 | . . 7 11 Protection 1 | . . . 7 Energy Gun 26 | . 28 28 20 Naked Turns . | . . . . Heaviest Build 22 | 9 9 15 22 Greatest Support 25 | 20 20 25 25 Greatest Overweight (x) . | . . . . Average Overweight (x) . | . . . . Largest Inventory Capacity 4 | 4 4 4 4 Average Capacity 4 | 4 4 4 4 Most Carried 4 | 4 1 1 1 Average Carried . | . . . . Final Capacity 4 | 4 4 4 4 Final Carried . | . . . . Class Distribution -------------------- 100% | Mutant Dominant Class ---------------- Mutant | -10/Materials Mutant | -10/Mines Mutant | -9/Materials Resources | -11 -10 -10 -9 ----------- Run | Scr Mat Min Mat Matter Collected 280 | 199 51 30 . Remotely . | . . . . Salvage Created 550 | . 319 231 . Parts 38 | . 31 7 . Haulers Intercepted 2 | . 2 . . Recyclers Shooed 1 | . 1 . . Parts Field Recycled . | . . . . Retrieved Matter . | . . . . Parts Self-Destructed . | . . . . Prevented . | . . . . Kills | -11 -10 -10 -9 ------- Run | Scr Mat Min Mat Combat Hostiles Destroyed 6 | . 5 1 . Guns 6 | . 5 1 . Classes Destroyed 6 | . 5 1 . Tunneler 3 | . 2 1 . Hauler 2 | . 2 . . Recycler 1 | . . 1 . Mechanic 1 | . 1 . . Watcher 2 | . 2 . . Swarmer 5 | . 5 . . Best Kill Streak 5 | . 5 2 . Combat Bots Only 3 | . 3 1 . Max Kills in Single Turn 1 | . 1 1 . Gunslinging . | . . . . Exploded . | . . . . Melee . | . . . . Uniques/NPCs Destroyed 1 | . . 1 . YI-UF0 (-10/Mines) Combat | -11 -10 -10 -9 -------- Run | Scr Mat Min Mat Damage Taken 286 | . 101 129 56 Core 79 | . 36 34 9 Absorbed by Shields . | . . . . Core Remaining (%) 86 | 100 . 72 . Volleys Fired 51 | . 34 11 6 Largest 2 | . 2 2 2 Hottest 90 | . 90 90 90 Shots Fired 99 | . 67 22 10 Gun 99 | . 67 22 10 Cannon . | . . . . Launcher . | . . . . Special . | . . . . Kinetic . | . . . . Thermal 48 | . 33 11 4 Explosive . | . . . . Electromagnetic 51 | . 34 11 6 Robot Hit Streak 10 | . 10 10 10 Robot Miss Streak 3 | . 3 2 1 Penetration Max . | . . . . Secondary Targets 2 | . 2 . . Max Gunslinging Chain 1 | . 1 . . Shots Hit Robots 73 | . 47 18 8 Core Hits 26 | . 16 9 1 Critical Hits . | . . . . Critical Kills . | . . . . Critical Parts Destroyed . | . . . . Melee Attacks . | . . . . Impact . | . . . . Slashing . | . . . . Piercing . | . . . . Sneak Attacks . | . . . . Combat Hostiles . | . . . . Follow-up Attacks . | . . . . Damage Inflicted 921 | . 600 229 92 Guns 921 | . 600 229 92 Cannons . | . . . . Explosions . | . . . . Melee . | . . . . Ramming . | . . . . Kinetic . | . . . . Thermal 398 | . 259 101 38 Explosive . | . . . . Electromagnetic 523 | . 341 128 54 Impact . | . . . . Slashing . | . . . . Piercing . | . . . . Highest Corruption 2 | . 2 2 . Average Corruption 1 | . 1 2 . Corruption Purged . | . . . . Effects 3 | . 1 2 . Message Errors 2 | . 1 1 . Data Loss (minor) 1 | . . 1 . Overload Shots . | . . . . Overflow Damage . | . . . . Projectiles . | . . . . Explosions . | . . . . Melee . | . . . . Knockbacks . | . . . . Impact . | . . . . Kinetic . | . . . . Secondary . | . . . . Self-Inflicted Damage . | . . . . Shots . | . . . . Rammed . | . . . . Targets Rammed . | . . . . Kicked . | . . . . Crushed . | . . . . Highest Temperature 150 | . 120 150 . Average Temperature 48 | . 44 67 . Received Heat Transfer 54 | . . 30 24 Siege Activations . | . . . . Robots Corrupted . | . . . . Combat Hostiles . | . . . . Parts Fried 1 | . 1 . . Impact Corruptions . | . . . . Robots Melted . | . . . . Combat Hostiles . | . . . . Parts Melted . | . . . . Heat Transferred 1147 | . 740 296 111 Parts Sabotaged . | . . . . Parts Stolen . | . . . . Parts Stripped . | . . . . Power Chain Reactions . | . . . . Missiles Intercepted . | . . . . Alert | -11 -10 -10 -9 ------- Run | Scr Mat Min Mat Peak Influence 216 | . 216 17 35 Average Influence 49 | . 89 9 16 Maximum Alert Level 1 | . 1 . . Low Security (%) 98 | 100 96 100 100 Level 1 1 | . 3 . . Level 2 . | . . . . Level 3 . | . . . . Level 4 . | . . . . Level 5 . | . . . . High Security . | . . . . Max Security . | . . . . Squads Dispatched 1 | . . . 1 Investigation 1 | . . . 1 Extermination . | . . . . Reinforcement . | . . . . Assault . | . . . . Garrison . | . . . . Intercept . | . . . . Construction Impeded . | . . . . Haulers Reinforced . | . . . . Stealth | -11 -10 -10 -9 --------- Run | Scr Mat Min Mat Distress Signals . | . . . . Communications Jammed . | . . . . Distress Signals . | . . . . Times Spotted 20 | . 12 5 3 Peak Tracking Total 4 | . 4 2 3 Tactical Retreats 2 | . 1 1 . Traps | -11 -10 -10 -9 ------- Run | Scr Mat Min Mat Traps Triggered 1 | . 1 . . Indirectly . | . . . . Trap Hack Attempts . | . . . . Triggered . | . . . . Disarmed . | . . . . Reprogrammed . | . . . . Reused . | . . . . Traps Extracted . | . . . . Installed . | . . . . Triggered . | . . . . Machines | -11 -10 -10 -9 ---------- Run | Scr Mat Min Mat Machines Disabled 2 | . 2 . . Max in Single Turn 1 | . 1 . . Machines Sabotaged . | . . . . Garrisons Compromised . | . . . . Overloaded Fab Kills . | . . . . Fab Network Shutdowns . | . . . . Hacking | -11 -10 -10 -9 --------- Run | Scr Mat Min Mat Machines Accessed 6 | . 4 . 2 Terminals 5 | . 4 . 1 Fabricators . | . . . . Repair Stations . | . . . . Recycling Units . | . . . . Scanalyzers 1 | . . . 1 Garrison Access . | . . . . Total Hacks 16 | . 11 . 5 Successful 8 | . 5 . 3 Failed 8 | . 6 . 2 Catastrophic 3 | . 2 . 1 Database Lockouts . | . . . . Manual 14 | . 10 . 4 Terminals 15 | . 11 . 4 Fabricators . | . . . . Repair Stations . | . . . . Recycling Units . | . . . . Scanalyzers 1 | . . . 1 Garrison Access . | . . . . Terminal Hacks 7 | . 5 . 2 Robot Analysis 2 | . 2 . . Dispatch Records 2 | . 1 . 1 Patrol Status 1 | . 1 . . Recall Investigation 1 | . . . 1 Registered Components 1 | . 1 . . Fabricator Hacks . | . . . . Repair Station Hacks . | . . . . Recycling Unit Hacks . | . . . . Scanalyzer . | . . . . Garrison Access Hacks . | . . . . Unauthorized Hacks 2 | . . . 2 Terminals . | . . . . Fabricators . | . . . . Repair Stations . | . . . . Recycling Units . | . . . . Scanalyzers 1 | . . . 1 Extract 1 | . . . 1 Garrison Access . | . . . . Data Cores Recovered . | . . . . Used . | . . . . Hacking Detections 5 | . 4 . 1 Full Trace Events 2 | . 2 . . Feedback Events 1 | . 1 . . Corruption 1 | . 1 . . Feedback Blocked . | . . . . Robot Schematics Acquired . | . . . . Robots Built . | . . . . Matter . | . . . . Time . | . . . . Total Robot Build Rating . | . . . . Part Schematics Acquired 2 | . . . 2 Parts Built . | . . . . Matter . | . . . . Time . | . . . . Total Part Build Rating . | . . . . Parts Repaired . | . . . . Time . | . . . . Parts Recycled . | . . . . Recycled Matter . | . . . . Retrieved Matter . | . . . . Retrieved Components . | . . . . Parts Scanalyzed . | . . . . Part Schematics Acquired . | . . . . Parts Damaged . | . . . . Bothacking | -11 -10 -10 -9 ------------ Run | Scr Mat Min Mat Used RIF Installer . | . . . . Robots Hacked . | . . . . Non-combat . | . . . . Combat . | . . . . Robot Hacks Applied . | . . . . Relay Couplers Released . | . . . . Robots Rewired . | . . . . Allies Hacked . | . . . . Hacks Repelled . | . . . . Allies | -11 -10 -10 -9 -------- Run | Scr Mat Min Mat Total Allies . | . . . . Largest Group . | . . . . Highest-Rated Group . | . . . . Highest-Rated Ally . | . . . . Total Orders . | . . . . Ally Attacks . | . . . . Total Damage . | . . . . Kills . | . . . . Allies Corrupted . | . . . . Allies Melted . | . . . . Intel | -11 -10 -10 -9 ------- Run | Scr Mat Min Mat Robot Analysis Total 2 | . 2 . . Derelict Logs Recovered 1 | . . 1 . Drone Launches . | . . . . Drone Recoveries . | . . . . Exploration | -11 -10 -10 -9 ------------- Run | Scr Mat Min Mat Turns Passed 866 | 39 428 231 168 Spaces Moved 579 | 30 269 159 121 Core 9 | 9 . . . Treads . | . . . . Legs 570 | 21 269 159 121 Wheels . | . . . . Hover . | . . . . Flight . | . . . . Fastest Speed 50 | 50 120 120 120 Average Speed 118 | 99 120 120 120 Slowest Speed 120 | 120 120 120 120 Overloaded Moves . | . . . . Propulsion Burnouts . | . . . . Robots Hopped . | . . . . Cave-ins Triggered . | . . . . Exploration Rate (%) 35 | 4 70 55 12 Regions Visited 3 Branch Regions 1 Pre-discovered Areas . | . . . . Known Exits Taken . | . . . . Unknown Exits Taken 3 | 1 1 1 . Scrap Searched 1 | . . 1 . Spaces Dug . | . . . . Terrain Destroyed . | . . . . Melee . | . . . . Projectile . | . . . . AOE . | . . . . Actions | -11 -10 -10 -9 --------- Run | Scr Mat Min Mat Total 656 | 39 307 177 133 Wait 7 | . 3 . 4 Move 576 | 29 268 158 121 Hop . | . . . . Pick Up 10 | 5 1 3 1 Fast Attach . | . . . . Attach 8 | 5 . 2 1 Detach . | . . . . Swap 1 | . . 1 . Drop 3 | . 1 2 . Fire 51 | . 34 11 6 Melee . | . . . . Ram . | . . . . Kick . | . . . . Crush . | . . . . Escape Stasis . | . . . . Rewire . | . . . . Trap . | . . . . Miscellaneous . | . . . . Route ------- -11/Scrapyard -10/Materials (discovered 3 exits: *Mat / [*Min x2]) -10/Mines -9/Materials History --------- Turn | Location | Event 3 | -11/Scrapyard | Discovered new exit (range 15) 40 | -11/Scrapyard | Entered Materials 281 | -10/Materials | Discovered new exit (range 9) 317 | -10/Materials | Build established: Mutant 327 | -10/Materials | Discovered new exit (range 10) 445 | -10/Materials | Discovered new exit (range 16) 468 | -10/Materials | Entered Mines 518 | -10/Mines | A weapon hastily lodged in a ceiling crevice suddenly fell to the ground 547 | -10/Mines | Destroyed YI-UF0 583 | -10/Mines | Learned Materials stockpile data 691 | -10/Mines | Discovered new exit (range 4) 699 | -10/Mines | Entered Materials 699 | -9/Materials | Evolved 2 slots: Utility x2 867 | -9/Materials | Self-destructed Last Messages --------------- 00799_ ALERT: Suspicious activity at Scanalyzer M001. Dispatching Investigation squad. 00827_ K-01 Serf collects debris. 00847_ C-30 ARC bursts open, deploying its payload. 00847_ L-31 Rogue unfolds itself. 00847_ G-34 Mercenary unfolds itself. 00847_ Med. Laser destroyed. 00853_ Connecting with Terminal... >>Enumerate(Squads) Retrieving dispatch records... Found 28 active squads: 10x Security 5x Surveillance 6x Patrol 6x Transport 1x Investigation >>Recall(Investigation) Establishing remote squad link... Recalled investigation squad 1GK6A99NSP. 00863_ Destroyed Melee Analysis Suite. Map ----- +----------------------------------------------------+ | ????????????????????????????? | | ????????????????????????????? | | ????????????????????????????? | | ????????????????????????????? | | ????????????????????????????? | | ????????????????????????????? | | ????????????????????????????? | | ????????????????????????????? | | ????????????????????????????? | | ????????????????????????????? | | ????????????????????????????? | | ????????????????????????????? | | ????????????????????????????? | | ????????????????????????????? | | ???????????###??????????????? | | ??????????? #??????????????? | | ??????????? +??????????????? | | ??????????# #??????????????? | | ??????????# #??????????????? | | ??????????# +??????????????? | | ??????????# #??????????????? | | ???######## #??????????????? | | ???# # #??????????????? | | ???# [ # #??????????????? | | ???# g/ +??????????????? | | ???#@ # #??????????????? | | ???#l "T" # #??????????????? | | ???# # ########???????? | | ???######## # #???????? | | ??????????# # #???????? | | ??????????# # """#???????? | | ??????????# # """#???????? | | ??????????# # """#???????? | | ??????????# #? ????????? | | ??????????# %####+####??????? | | ???######## #??????? | | ???# # #??????? | | ???# "S # #??????? | | ???# """ + #### #??????? | | ???# "" # #??# #??????? | | ???# # #??# #??????? | | ???# # #??# ######## | | ???######## #??# | | ??????????# #??# | | ??????????# #??# | | ??????????# #??############ | | ??????????# #??????# #? | | ??????????# #??????# #? | | ??????##### ######## #? | | ??????# # #? | +----------------------------------------------------+ Best States ------------- Heat Dissipation 47 Energy Generation 16 Energy Capacity 290 Matter Stores 300 Matter Capacity 300 Sight Range 16 Terrain Scan Density 10 Armor Coverage 225 Resistance: KI 20 Resistance: TH 20 Resistance: EX 20 Resistance: EM 20 Resistance: I 20 Resistance: S 20 Resistance: P 20 Evasion (%) 50 Offensive Hacking 10 Item Schematics ----------------- ECM Suite | -9/Materials | Extracted Disposable Heat Sink | -9/Materials | Extracted Robot Schematics ------------------ None Fabricated ------------ Nothing Alien Tech Used ----------------- None Achievements -------------- None Challenges ------------ None Game ------ Seed MagneticElectronGravjet Manual? 0 Play Time 00:06:13 Cumulative 212.1 hours Start 2020.08.03 @ 19:37:12 End 2020.08.03 @ 19:42:28 Sessions 1 Manual Loads 0 Difficulty Adventurer Special Mode None Game No. 85 Rogue 0 Adventurer 85 Explorer 0 Win Type - Total 1 Types 1/0/0/0/0/0/0 Lore% 33 Gallery% 58 Achievement% 43 Wizard Run 0 Options --------- ASCII 0 Keyboard 0 Movement Numpad Keybinds 0 Fullscreen 0 Font 12/Smallcaps Map View 83x54 Tactical HUD 1 Map Filters NONE Filters NONE Steam X RUN: 209f9044-e055-4d67-ad12-a7944b21abe2